fUSD/lending_fUSD_20260621
["ID","MTS","AMOUNT","RATE_DAILY","PERIOD"]
[425944332,1782041467000,-500.0,0.00027945,2]
[425944333,1782041467000,-609.18810277,0.00027945,2]
[425944335,1782041467000,-500.0,0.00027945,2]
[425944336,1782041467000,-500.0,0.00027945,2]
[425944334,1782041467000,-500.0,0.00027945,2]
[425944342,1782041467000,-142154.504176,0.00027945,2]
[425944337,1782041467000,-500.0,0.00027945,2]
[425944363,1782041467000,-500.0,0.00027945,2]
[425944360,1782041467000,-500.0,0.00027945,2]
[425944372,1782041467000,-500.0,0.00027945,2]
[425944392,1782041467000,-500.0,0.00027945,2]
[425944393,1782041467000,-945.92,0.00027945,2]
[425944389,1782041467000,-833.58,0.00027945,2]
[425944390,1782041467000,-4358.65,0.00027945,2]
[425944403,1782041467000,-500.0,0.00027945,2]
[425944395,1782041467000,-500.0,0.00027945,2]
[425944400,1782041467000,-456.54935189,0.00027945,2]
[425944404,1782041467000,-500.0,0.00027945,2]
[425944396,1782041467000,-500.0,0.00027945,2]
[425944401,1782041467000,-500.0,0.00027945,2]
[425944398,1782041467000,-4418.15,0.00027945,2]
[425944399,1782041467000,-500.0,0.00027945,2]
[425944402,1782041467000,-507.55579273,0.00027945,2]
[425944405,1782041467000,-500.0,0.00027945,2]
[425944407,1782041467000,-500.0,0.00027945,2]
[425944406,1782041467000,-500.0,0.00027945,2]
[425944409,1782041467000,-1247.04,0.00027945,2]
[425944410,1782041467000,-1121.32,0.00027945,2]
[425944411,1782041467000,-500.0,0.00027945,2]
[425944408,1782041467000,-4138.94,0.00027945,2]
[425944366,1782041467000,-500.0,0.00027945,2]
[425944385,1782041467000,-533.17,0.00027945,2]
[425944394,1782041467000,-627.07629965,0.00027945,2]
[425944397,1782041467000,-500.0,0.00027945,2]
[425944383,1782041467000,-500.0,0.00027945,2]
[425944364,1782041467000,-524.72212906,0.00027945,2]
[425944388,1782041467000,-500.0,0.00027945,2]
[425944369,1782041467000,-500.0,0.00027945,2]
[425944365,1782041467000,-500.0,0.00027945,2]
[425944367,1782041467000,-500.0,0.00027945,2]
[425944371,1782041467000,-500.0,0.00027945,2]
[425944368,1782041467000,-500.0,0.00027945,2]
[425944376,1782041467000,-717.28,0.00027945,2]
[425944377,1782041467000,-557.39,0.00027945,2]
[425944373,1782041467000,-786.39,0.00027945,2]
[425944370,1782041467000,-500.0,0.00027945,2]
[425944391,1782041467000,-500.0,0.00027945,2]
[425944384,1782041467000,-2603.66,0.00027945,2]
[425944374,1782041467000,-500.0,0.00027945,2]
[425944387,1782041467000,-523.09747319,0.00027945,2]
[425944382,1782041467000,-822.52,0.00027945,2]
[425944379,1782041467000,-542.72,0.00027945,2]
[425944386,1782041467000,-500.0,0.00027945,2]
[425944378,1782041467000,-500.0,0.00027945,2]
[425944380,1782041467000,-1432.58,0.00027945,2]
[425944381,1782041467000,-500.0,0.00027945,2]
[425944375,1782041467000,-500.0,0.00027945,2]
[425944445,1782041468000,-500.0,0.00027945,2]
[425944453,1782041468000,-809.98,0.00027945,2]
[425944446,1782041468000,-500.0,0.00027945,2]
[425944449,1782041468000,-500.0,0.00027945,2]
[425944451,1782041468000,-5490.85,0.00027945,2]
[425944448,1782041468000,-500.0,0.00027945,2]
[425944444,1782041468000,-500.0,0.00027945,2]
[425944443,1782041468000,-1816.77,0.00027945,2]
[425944452,1782041468000,-1153.83,0.00027945,2]
[425944447,1782041468000,-500.0,0.00027945,2]
[425944455,1782041468000,-471.4760649,0.00027945,2]
[425944441,1782041468000,-500.0,0.00027945,2]
[425944465,1782041468000,-500.0,0.00027945,2]
[425944460,1782041468000,-5276.66,0.00027945,2]
[425944463,1782041468000,-599.42,0.00027945,2]
[425944454,1782041468000,-500.0,0.00027945,2]
[425944457,1782041468000,-500.0,0.00027945,2]
[425944456,1782041468000,-500.0,0.00027945,2]
[425944462,1782041468000,-500.0,0.00027945,2]
[425944458,1782041468000,-500.0,0.00027945,2]
[425944466,1782041468000,-500.0,0.00027945,2]
[425944459,1782041468000,-6368.24,0.00027945,2]
[425944464,1782041468000,-500.0,0.00027945,2]
[425944467,1782041468000,-500.0,0.00027945,2]
[425944470,1782041468000,-1401.64,0.00027945,2]
[425944442,1782041468000,-500.0,0.00027945,2]
[425944461,1782041468000,-500.0,0.00027945,2]
[425944450,1782041468000,-500.0,0.00027945,2]
[425944417,1782041468000,-500.0,0.00027945,2]
[425944433,1782041468000,-239.95808326,0.00027945,2]
[425944469,1782041468000,-500.0,0.00027945,2]
[425944415,1782041468000,-3754.21,0.00027945,2]
[425944414,1782041468000,-657.86,0.00027945,2]
[425944416,1782041468000,-4407.46,0.00027945,2]
[425944412,1782041468000,-624.18,0.00027945,2]
[425944413,1782041468000,-500.0,0.00027945,2]
[425944419,1782041468000,-614.69,0.00027945,2]
[425944418,1782041468000,-1570.62,0.00027945,2]
[425944421,1782041468000,-500.0,0.00027945,2]
[425944420,1782041468000,-500.0,0.00027945,2]
[425944422,1782041468000,-500.0,0.00027945,2]
[425944423,1782041468000,-5144.26,0.00027945,2]
[425944424,1782041468000,-348.39451199,0.00027945,2]
[425944425,1782041468000,-333.64757059,0.00027945,2]
[425944428,1782041468000,-791.03,0.00027945,2]
[425944427,1782041468000,-1285.55,0.00027945,2]
[425944426,1782041468000,-500.0,0.00027945,2]
[425944440,1782041468000,-500.0,0.00027945,2]
[425944430,1782041468000,-500.0,0.00027945,2]
[425944429,1782041468000,-500.0,0.00027945,2]
[425944434,1782041468000,-517.66992654,0.00027945,2]
[425944431,1782041468000,-500.0,0.00027945,2]
[425944439,1782041468000,-500.0,0.00027945,2]
[425944435,1782041468000,-500.0,0.00027945,2]
[425944438,1782041468000,-3690.31,0.00027945,2]
[425944432,1782041468000,-500.0,0.00027945,2]
[425944436,1782041468000,-500.0,0.00027945,2]
[425944437,1782041468000,-500.0,0.00027945,2]
[425944478,1782041468000,-500.0,0.00027945,2]
[425944473,1782041468000,-500.0,0.00027945,2]
[425944475,1782041468000,-500.0,0.00027945,2]
[425944509,1782041468000,-500.0,0.00027945,2]
[425944505,1782041468000,-5071.67,0.00027945,2]
[425944507,1782041468000,-250.66575981,0.00027945,2]
[425944508,1782041468000,-1000.0,0.00027945,2]
[425944504,1782041468000,-500.0,0.00027945,2]
[425944510,1782041468000,-500.0,0.00027945,2]
[425944503,1782041468000,-4526.61,0.00027945,2]
[425944512,1782041468000,-635.33342118,0.00027945,2]
[425944506,1782041468000,-500.0,0.00027945,2]
[425944511,1782041468000,-500.0,0.00027945,2]
[425944516,1782041468000,-273.19220741,0.00027945,2]
[425944521,1782041468000,-500.0,0.00027945,2]
[425944526,1782041468000,-500.0,0.00027945,2]
[425944523,1782041468000,-500.0,0.00027945,2]
[425944520,1782041468000,-500.0,0.00027945,2]
[425944518,1782041468000,-347.43657631,0.00027945,2]
[425944514,1782041468000,-2937.45,0.00027945,2]
[425944517,1782041468000,-5790.86,0.00027945,2]
[425944522,1782041468000,-500.0,0.00027945,2]
[425944519,1782041468000,-500.0,0.00027945,2]
[425944515,1782041468000,-500.0,0.00027945,2]
[425944525,1782041468000,-500.0,0.00027945,2]
[425944528,1782041468000,-500.0,0.00027945,2]
[425944527,1782041468000,-500.0,0.00027945,2]
[425944530,1782041468000,-4927.15,0.00027945,2]
[425944529,1782041468000,-1540.59,0.00027945,2]
[425944531,1782041468000,-551.78,0.00027945,2]
[425944513,1782041468000,-500.0,0.00027945,2]
[425944499,1782041468000,-510.08950053,0.00027945,2]
[425944524,1782041468000,-500.0,0.00027945,2]
[425944502,1782041468000,-1051.17,0.00027945,2]
[425944476,1782041468000,-500.0,0.00027945,2]
[425944494,1782041468000,-500.0,0.00027945,2]
[425944472,1782041468000,-500.0,0.00027945,2]
[425944471,1782041468000,-500.0,0.00027945,2]
[425944474,1782041468000,-500.0,0.00027945,2]
[425944477,1782041468000,-500.0,0.00027945,2]
[425944468,1782041468000,-791.58,0.00027945,2]
[425944479,1782041468000,-500.0,0.00027945,2]
[425944490,1782041468000,-500.0,0.00027945,2]
[425944481,1782041468000,-5471.52,0.00027945,2]
[425944482,1782041468000,-1496.3,0.00027945,2]
[425944487,1782041468000,-500.0,0.00027945,2]
[425944484,1782041468000,-10299.35,0.00027945,2]
[425944483,1782041468000,-500.0,0.00027945,2]
[425944480,1782041468000,-500.0,0.00027945,2]
[425944489,1782041468000,-2310.69,0.00027945,2]
[425944495,1782041468000,-354.65671518,0.00027945,2]
[425944488,1782041468000,-500.0,0.00027945,2]
[425944496,1782041468000,-5185.6,0.00027945,2]
[425944492,1782041468000,-3778.65,0.00027945,2]
[425944497,1782041468000,-1084.65,0.00027945,2]
[425944501,1782041468000,-515.74,0.00027945,2]
[425944498,1782041468000,-712.28,0.00027945,2]
[425944493,1782041468000,-500.0,0.00027945,2]
[425944500,1782041468000,-500.0,0.00027945,2]
[425944486,1782041468000,-500.0,0.00027945,2]
[425944485,1782041468000,-500.0,0.00027945,2]
[425944491,1782041468000,-500.0,0.00027945,2]
[425944575,1782041469000,-500.0,0.00027945,2]
[425944571,1782041469000,-9459.19,0.00027945,2]
[425944570,1782041469000,-747.22,0.00027945,2]
[425944567,1782041469000,-569.43,0.00027945,2]
[425944572,1782041469000,-500.0,0.00027945,2]
[425944568,1782041469000,-762.22,0.00027945,2]
[425944573,1782041469000,-500.0,0.00027945,2]
[425944566,1782041469000,-500.0,0.00027945,2]
[425944554,1782041469000,-6055.84,0.00027945,2]
[425944558,1782041469000,-242.65716228,0.00027945,2]
[425944565,1782041469000,-500.0,0.00027945,2]
[425944569,1782041469000,-500.0,0.00027945,2]
[425944564,1782041469000,-1355.35,0.00027945,2]
[425944584,1782041469000,-9769.93,0.00027945,2]
[425944578,1782041469000,-500.0,0.00027945,2]
[425944580,1782041469000,-7097.95,0.00027945,2]
[425944583,1782041469000,-500.0,0.00027945,2]
[425944585,1782041469000,-635.22,0.00027945,2]
[425944588,1782041469000,-5383.81,0.00027945,2]
[425944577,1782041469000,-500.0,0.00027945,2]
[425944587,1782041469000,-6658.95,0.00027945,2]
[425944576,1782041469000,-10187.27,0.00027945,2]
[425944581,1782041469000,-6306.04,0.00027945,2]
[425944582,1782041469000,-605.84028048,0.00027945,2]
[425944579,1782041469000,-500.0,0.00027945,2]
[425944553,1782041469000,-802.4,0.00027945,2]
[425944574,1782041469000,-3767.72,0.00027945,2]
[425944560,1782041469000,-500.0,0.00027945,2]
[425944590,1782041469000,-500.0,0.00027945,2]
[425944563,1782041469000,-830.82,0.00027945,2]
[425944586,1782041469000,-907.49,0.00027945,2]
[425944538,1782041469000,-8889.73,0.00027945,2]
[425944532,1782041469000,-500.0,0.00027945,2]
[425944533,1782041469000,-5086.11,0.00027945,2]
[425944534,1782041469000,-500.0,0.00027945,2]
[425944537,1782041469000,-602.16,0.00027945,2]
[425944535,1782041469000,-3633.38,0.00027945,2]
[425944536,1782041469000,-500.0,0.00027945,2]
[425944539,1782041469000,-1436.960783,0.00027945,7]
[425944540,1782041469000,-500.0,0.00027945,2]
[425944549,1782041469000,-500.0,0.00027945,2]
[425944541,1782041469000,-1436.960783,0.00027945,7]
[425944544,1782041469000,-4920.34,0.00027945,2]
[425944545,1782041469000,-630.74,0.00027945,2]
[425944548,1782041469000,-1436.960783,0.00027945,7]
[425944542,1782041469000,-500.0,0.00027945,2]
[425944550,1782041469000,-7329.28,0.00027945,2]
[425944546,1782041469000,-500.0,0.00027945,2]
[425944551,1782041469000,-1675.81,0.00027945,2]
[425944547,1782041469000,-543.22508646,0.00027945,2]
[425944543,1782041469000,-1436.960783,0.00027945,7]
[425944561,1782041469000,-500.0,0.00027945,2]
[425944559,1782041469000,-6718.25,0.00027945,2]
[425944562,1782041469000,-500.0,0.00027945,2]
[425944555,1782041469000,-500.0,0.00027945,2]
[425944557,1782041469000,-5372.41,0.00027945,2]
[425944556,1782041469000,-8710.73,0.00027945,2]
[425944552,1782041469000,-9406.56,0.00027945,2]
[425944591,1782041469000,-500.0,0.00027945,2]
[425944611,1782041469000,-673.53,0.00027945,2]
[425944597,1782041469000,-900.14,0.00027945,2]
[425944624,1782041469000,-513.46,0.00027945,2]
[425944633,1782041469000,-4309.61,0.00027945,2]
[425944632,1782041469000,-500.0,0.00027945,2]
[425944623,1782041469000,-500.0,0.00027945,2]
[425944629,1782041469000,-604.06,0.00027945,2]
[425944631,1782041469000,-500.0,0.00027945,2]
[425944630,1782041469000,-500.0,0.00027945,2]
[425944625,1782041469000,-500.0,0.00027945,2]
[425944598,1782041469000,-500.0,0.00027945,2]
[425944628,1782041469000,-300.0,0.00027945,2]
[425944627,1782041469000,-500.0,0.00027945,2]
[425944634,1782041469000,-552.58912641,0.00027945,2]
[425944643,1782041469000,-528.51,0.00027945,2]
[425944637,1782041469000,-9170.86,0.00027945,2]
[425944645,1782041469000,-500.0,0.00027945,2]
[425944636,1782041469000,-644.07,0.00027945,2]
[425944635,1782041469000,-359.91507559,0.00027945,2]
[425944642,1782041469000,-552.46039231,0.00027945,2]
[425944638,1782041469000,-6837.07,0.00027945,2]
[425944641,1782041469000,-151.0,0.00027945,7]
[425944640,1782041469000,-151.0,0.00027945,7]
[425944644,1782041469000,-7268.59,0.00027945,2]
[425944639,1782041469000,-500.0,0.00027945,2]
[425944647,1782041469000,-151.0,0.00027945,7]
[425944646,1782041469000,-151.0,0.00027945,7]
[425944648,1782041469000,-500.0,0.00027945,2]
[425944649,1782041469000,-500.0,0.00027945,2]
[425944622,1782041469000,-8823.24,0.00027945,2]
[425944618,1782041469000,-500.0,0.00027945,2]
[425944626,1782041469000,-500.0,0.00027945,2]
[425944615,1782041469000,-8419.53,0.00027945,2]
[425944599,1782041469000,-500.0,0.00027945,2]
[425944594,1782041469000,-500.0,0.00027945,2]
[425944621,1782041469000,-13098.52,0.00027945,2]
[425944589,1782041469000,-4117.41,0.00027945,2]
[425944595,1782041469000,-500.0,0.00027945,2]
[425944596,1782041469000,-500.0,0.00027945,2]
[425944593,1782041469000,-4489.89,0.00027945,2]
[425944592,1782041469000,-500.0,0.00027945,2]
[425944600,1782041469000,-500.0,0.00027945,2]
[425944602,1782041469000,-500.0,0.00027945,2]
[425944603,1782041469000,-500.0,0.00027945,2]
[425944604,1782041469000,-500.0,0.00027945,2]
[425944601,1782041469000,-500.0,0.00027945,2]
[425944612,1782041469000,-500.0,0.00027945,2]
[425944605,1782041469000,-5756.01,0.00027945,2]
[425944619,1782041469000,-11148.58,0.00027945,2]
[425944606,1782041469000,-500.0,0.00027945,2]
[425944620,1782041469000,-500.0,0.00027945,2]
[425944613,1782041469000,-3494.12,0.00027945,2]
[425944617,1782041469000,-623.68,0.00027945,2]
[425944616,1782041469000,-500.0,0.00027945,2]
[425944614,1782041469000,-500.0,0.00027945,2]
[425944609,1782041469000,-1112.63,0.00027945,2]
[425944610,1782041469000,-500.0,0.00027945,2]
[425944607,1782041469000,-500.0,0.00027945,2]
[425944608,1782041469000,-500.0,0.00027945,2]
[425944691,1782041470000,-500.0,0.00027945,2]
[425944670,1782041470000,-500.0,0.00027945,2]
[425944673,1782041470000,-500.0,0.00027945,2]
[425944679,1782041470000,-500.0,0.00027945,2]
[425944675,1782041470000,-500.0,0.00027945,2]
[425944681,1782041470000,-6743.01,0.00027945,2]
[425944677,1782041470000,-4255.92,0.00027945,2]
[425944674,1782041470000,-500.0,0.00027945,2]
[425944683,1782041470000,-500.0,0.00027945,2]
[425944685,1782041470000,-500.0,0.00027945,2]
[425944694,1782041470000,-1317.73,0.00027945,2]
[425944708,1782041470000,-500.0,0.00027945,2]
[425944689,1782041470000,-500.0,0.00027945,2]
[425944686,1782041470000,-500.0,0.00027945,2]
[425944690,1782041470000,-7687.48,0.00027945,2]
[425944695,1782041470000,-551.8,0.00027945,2]
[425944687,1782041470000,-500.0,0.00027945,2]
[425944684,1782041470000,-500.0,0.00027945,2]
[425944692,1782041470000,-557.99810627,0.00027945,2]
[425944693,1782041470000,-15685.64,0.00027945,2]
[425944697,1782041470000,-500.0,0.00027945,2]
[425944678,1782041470000,-500.0,0.00027945,2]
[425944688,1782041470000,-500.0,0.00027945,2]
[425944672,1782041470000,-500.0,0.00027945,2]
[425944701,1782041470000,-2865.46,0.00027945,2]
[425944680,1782041470000,-560.51,0.00027945,2]
[425944707,1782041470000,-8765.19,0.00027945,2]
[425944653,1782041470000,-505.26,0.00027945,2]
[425944657,1782041470000,-7027.59,0.00027945,2]
[425944654,1782041470000,-4706.4,0.00027945,2]
[425944656,1782041470000,-9051.47,0.00027945,2]
[425944655,1782041470000,-500.0,0.00027945,2]
[425944651,1782041470000,-151.0,0.00027945,7]
[425944650,1782041470000,-151.0,0.00027945,7]
[425944652,1782041470000,-560.48,0.00027945,2]
[425944660,1782041470000,-500.0,0.00027945,2]
[425944658,1782041470000,-629.21,0.00027945,2]
[425944661,1782041470000,-1177.81,0.00027945,2]
[425944662,1782041470000,-500.0,0.00027945,2]
[425944664,1782041470000,-500.0,0.00027945,2]
[425944668,1782041470000,-6082.93,0.00027945,2]
[425944667,1782041470000,-500.0,0.00027945,2]
[425944659,1782041470000,-500.0,0.00027945,2]
[425944663,1782041470000,-500.0,0.00027945,2]
[425944665,1782041470000,-500.0,0.00027945,2]
[425944666,1782041470000,-500.0,0.00027945,2]
[425944669,1782041470000,-500.0,0.00027945,2]
[425944682,1782041470000,-612.86964462,0.00027945,2]
[425944671,1782041470000,-3570.15,0.00027945,2]
[425944676,1782041470000,-500.0,0.00027945,2]
[425944700,1782041470000,-5230.31,0.00027945,2]
[425944720,1782041470000,-500.0,0.00027945,2]
[425944698,1782041470000,-1036.7,0.00027945,2]
[425944727,1782041470000,-996.79,0.00027945,2]
[425944728,1782041470000,-500.0,0.00027945,2]
[425944729,1782041470000,-500.0,0.00027945,2]
[425944735,1782041470000,-600.56388892,0.00027945,2]
[425944733,1782041470000,-500.0,0.00027945,2]
[425944738,1782041470000,-500.0,0.00027945,2]
[425944736,1782041470000,-1956.1,0.00027945,2]
[425944737,1782041470000,-500.0,0.00027945,2]
[425944739,1782041470000,-500.0,0.00027945,2]
[425944740,1782041470000,-2259.71,0.00027945,2]
[425944730,1782041470000,-500.0,0.00027945,2]
[425944743,1782041470000,-500.0,0.00027945,2]
[425944745,1782041470000,-500.0,0.00027945,2]
[425944746,1782041470000,-500.0,0.00027945,2]
[425944747,1782041470000,-909.56,0.00027945,2]
[425944741,1782041470000,-729.73,0.00027945,2]
[425944750,1782041470000,-573.05,0.00027945,2]
[425944749,1782041470000,-500.0,0.00027945,2]
[425944742,1782041470000,-500.0,0.00027945,2]
[425944748,1782041470000,-500.0,0.00027945,2]
[425944752,1782041470000,-500.0,0.00027945,2]
[425944709,1782041470000,-1574.38,0.00027945,2]
[425944744,1782041470000,-500.0,0.00027945,2]
[425944725,1782041470000,-2639.33,0.00027945,2]
[425944734,1782041470000,-591.76084103,0.00027945,2]
[425944724,1782041470000,-500.0,0.00027945,2]
[425944696,1782041470000,-709.91,0.00027945,2]
[425944726,1782041470000,-670.9,0.00027945,2]
[425944699,1782041470000,-500.0,0.00027945,2]
[425944702,1782041470000,-577.03,0.00027945,2]
[425944706,1782041470000,-500.0,0.00027945,2]
[425944703,1782041470000,-500.0,0.00027945,2]
[425944704,1782041470000,-1267.73,0.00027945,2]
[425944714,1782041470000,-6716.5,0.00027945,2]
[425944710,1782041470000,-565.93692672,0.00027945,2]
[425944713,1782041470000,-500.0,0.00027945,2]
[425944719,1782041470000,-1014.39,0.00027945,2]
[425944715,1782041470000,-500.0,0.00027945,2]
[425944705,1782041470000,-500.0,0.00027945,2]
[425944716,1782041470000,-500.0,0.00027945,2]
[425944722,1782041470000,-4282.25,0.00027945,2]
[425944732,1782041470000,-4283.71,0.00027945,2]
[425944723,1782041470000,-500.0,0.00027945,2]
[425944717,1782041470000,-500.0,0.00027945,2]
[425944751,1782041470000,-500.0,0.00027945,2]
[425944731,1782041470000,-500.0,0.00027945,2]
[425944711,1782041470000,-904.85,0.00027945,2]
[425944712,1782041470000,-500.0,0.00027945,2]
[425944721,1782041470000,-525.46,0.00027945,2]
[425944718,1782041470000,-500.0,0.00027945,2]
[425944783,1782041471000,-200.0,0.00028129,2]
[425944789,1782041471000,-200.0,0.00028129,2]
[425944782,1782041471000,-200.0,0.00028129,2]
[425944792,1782041471000,-200.0,0.00028129,2]
[425944794,1782041471000,-200.0,0.00028129,2]
[425944790,1782041471000,-200.0,0.00028129,2]
[425944784,1782041471000,-200.0,0.00028129,2]
[425944793,1782041471000,-200.0,0.00028129,2]
[425944786,1782041471000,-200.0,0.00028129,2]
[425944787,1782041471000,-200.0,0.00028129,2]
[425944785,1782041471000,-200.0,0.00028129,2]
[425944788,1782041471000,-200.0,0.00028129,2]
[425944799,1782041471000,-200.0,0.00028129,2]
[425944795,1782041471000,-200.0,0.00028129,2]
[425944800,1782041471000,-200.0,0.00028129,2]
[425944802,1782041471000,-200.0,0.00028129,2]
[425944805,1782041471000,-200.0,0.00028129,2]
[425944801,1782041471000,-200.0,0.00028129,2]
[425944796,1782041471000,-200.0,0.00028129,2]
[425944803,1782041471000,-200.0,0.00028129,2]
[425944797,1782041471000,-200.0,0.00028129,2]
[425944806,1782041471000,-200.0,0.00028129,2]
[425944798,1782041471000,-200.0,0.00028129,2]
[425944779,1782041471000,-200.0,0.00028129,2]
[425944791,1782041471000,-200.0,0.00028129,2]
[425944777,1782041471000,-200.0,0.00028129,2]
[425944753,1782041471000,-503.69,0.00027945,2]
[425944781,1782041471000,-200.0,0.00028129,2]
[425944759,1782041471000,-500.0,0.00027945,2]
[425944755,1782041471000,-563.33422829,0.00027945,2]
[425944804,1782041471000,-200.0,0.00028129,2]
[425944754,1782041471000,-1067.51,0.00027945,2]
[425944758,1782041471000,-1203.84,0.00027945,2]
[425944757,1782041471000,-500.0,0.00027945,2]
[425944760,1782041471000,-500.0,0.00027945,2]
[425944756,1782041471000,-500.0,0.00027945,2]
[425944763,1782041471000,-2183.7,0.00027945,2]
[425944761,1782041471000,-500.0,0.00027945,2]
[425944764,1782041471000,-1802.0766593,0.00027989,2]
[425944770,1782041471000,-1436.960791,0.00028,7]
[425944765,1782041471000,-11661.89297217,0.00028,3]
[425944766,1782041471000,-16135.51729786,0.00028,2]
[425944769,1782041471000,-1436.960783,0.00028,7]
[425944762,1782041471000,-500.0,0.00027945,2]
[425944767,1782041471000,-1436.960783,0.00028,7]
[425944771,1782041471000,-1200.29,0.000281,7]
[425944768,1782041471000,-1436.960783,0.00028,7]
[425944773,1782041471000,-200.0,0.00028129,2]
[425944772,1782041471000,-200.0,0.00028129,2]
[425944775,1782041471000,-200.0,0.00028129,2]
[425944780,1782041471000,-200.0,0.00028129,2]
[425944778,1782041471000,-200.0,0.00028129,2]
[425944774,1782041471000,-200.0,0.00028129,2]
[425944776,1782041471000,-200.0,0.00028129,2]
[425944807,1782041471000,-200.0,0.00028129,2]
[425944819,1782041471000,-500.0,0.00028129,2]
[425944813,1782041471000,-500.0,0.00028129,2]
[425944838,1782041471000,-500.0,0.00028219,2]
[425944837,1782041471000,-500.0,0.00028219,2]
[425944846,1782041471000,-500.0,0.00028219,2]
[425944844,1782041471000,-500.0,0.00028219,2]
[425944852,1782041471000,-500.0,0.00028219,2]
[425944842,1782041471000,-500.0,0.00028219,2]
[425944851,1782041471000,-500.0,0.00028219,2]
[425944849,1782041471000,-362.02966926,0.00028219,2]
[425944845,1782041471000,-500.0,0.00028219,2]
[425944843,1782041471000,-500.0,0.00028219,2]
[425944850,1782041471000,-500.0,0.00028219,2]
[425944810,1782041471000,-500.0,0.00028129,2]
[425944847,1782041471000,-608.74,0.00028219,2]
[425944853,1782041471000,-500.0,0.00028219,2]
[425944855,1782041471000,-611.76,0.00028219,2]
[425944854,1782041471000,-500.0,0.00028219,2]
[425944856,1782041471000,-500.0,0.00028219,2]
[425944859,1782041471000,-500.0,0.00028219,2]
[425944858,1782041471000,-504.32,0.00028219,2]
[425944857,1782041471000,-510.54,0.00028219,2]
[425944860,1782041471000,-500.0,0.00028219,2]
[425944862,1782041471000,-500.0,0.00028219,2]
[425944863,1782041471000,-500.0,0.00028219,2]
[425944861,1782041471000,-501.82455083,0.00028219,2]
[425944864,1782041471000,-500.0,0.00028219,2]
[425944836,1782041471000,-519.83574775,0.00028219,2]
[425944832,1782041471000,-241.39689975,0.000282,2]
[425944848,1782041471000,-500.0,0.00028219,2]
[425944839,1782041471000,-156.942244,0.00028219,2]
[425944841,1782041471000,-500.0,0.00028219,2]
[425944812,1782041471000,-500.0,0.00028129,2]
[425944809,1782041471000,-181.0,0.00028129,2]
[425944811,1782041471000,-500.0,0.00028129,2]
[425944808,1782041471000,-200.0,0.00028129,2]
[425944814,1782041471000,-500.0,0.00028129,2]
[425944815,1782041471000,-500.0,0.00028129,2]
[425944818,1782041471000,-500.0,0.00028129,2]
[425944816,1782041471000,-500.0,0.00028129,2]
[425944817,1782041471000,-500.0,0.00028129,2]
[425944821,1782041471000,-500.0,0.00028129,2]
[425944831,1782041471000,-241.39689977,0.000282,2]
[425944820,1782041471000,-500.0,0.00028129,2]
[425944828,1782041471000,-14134.14295623,0.000282,2]
[425944829,1782041471000,-14134.14295622,0.000282,2]
[425944834,1782041471000,-513.44426899,0.00028219,2]